Organisation Name,Organisation Code,Directorate/Service,Service Category Label,Service Code,Supplier Name,Supplier Reference,Payment Date,Transaction Number,Net payment,Purpose of Spend
North West Leicestershire District Council,31UH,Street Management,Environment General Technician,ENOGT,County Drains Leicester Ltd,A024295,03/05/2017,1342339,1009.5,Routine Ground Maintenance
North West Leicestershire District Council,31UH,Leisure Centres,Hermitage Leisure Centre,HLC,Admiral Cleaning Supplies Ltd,A040930,24/05/2017,1342365,1241.14,Water Treatment
North West Leicestershire District Council,31UH,Leisure Centres,Hood Park Leisure Centre,HPLC,Zoggs International Ltd,A001833,17/05/2017,1343320,351,Leisure centre Equipment
North West Leicestershire District Council,31UH,Leisure Centres,Hood Park Leisure Centre,HPLC,Zoggs International Ltd,A001833,24/05/2017,1343321,351,Leisure centre Equipment
North West Leicestershire District Council,31UH,Housing,HRA Housing Management,HRAHM,Cirrus Communication Systems Ltd,A040630,24/05/2017,1343841,459.37,Alarm System Telephones
North West Leicestershire District Council,31UH,Housing,HRA Housing Management,HRAHM,AIM Mediation Ltd,A041734,24/05/2017,1344160,475,Legal & Professional Services
North West Leicestershire District Council,31UH,Street Management,Environment Waste Management,ENOWM,Groundsman Tools & Supplies,A030744,17/05/2017,1344306,342.18,Operational Equipment
North West Leicestershire District Council,31UH,Housing Repairs,HRA Housing Repairs & Maintenance,HRAHRM,London Fire Consultants & Design,A038408,31/05/2017,1344467,325,Consultants Fees
North West Leicestershire District Council,31UH,Street Management,Environment Waste Management,ENOWM,J F Lloyd & Sons,A000991,03/05/2017,1344575,260,Hire Of Operational Equipment
North West Leicestershire District Council,31UH,Chief Exec,Procurement,PROC,Due North Ltd,A043852,31/05/2017,1344613,4375,Computing
North West Leicestershire District Council,31UH,Leisure Centres,Hermitage Leisure Centre,HLC,Econoglaze Windows Limited,A043016,03/05/2017,1344736,527.7,General Repairs
North West Leicestershire District Council,31UH,Leisure Centres,Hood Park Leisure Centre,HPLC,Technogym Uk Limited,A001642,03/05/2017,1344749,6940.86,Service Contracts
North West Leicestershire District Council,31UH,Leisure Centres,Hermitage Leisure Centre,HLC,Technogym Uk Limited,A001642,03/05/2017,1344750,6222.45,Service Contracts
North West Leicestershire District Council,31UH,Leisure Centres,Hermitage Leisure Centre,HLC,Coalville Signs,A000370,03/05/2017,1344751,263,Publicity & Promotion
North West Leicestershire District Council,31UH,Information Technology,ICT Services,ICT,NB Data Ltd,A033802,03/05/2017,1344774,298.5,Administrative Equipment
North West Leicestershire District Council,31UH,Street Management,Environment Parks,ENOP,Tudor UK Ltd  (trading as Tudor Environmental),A043777,03/05/2017,1344818,1215.9,Operational Equipment - Purchases
North West Leicestershire District Council,31UH,Housing,HRA Performance & Business Support,HRAPBS,Michael Page International Recruitment Ltd,A041893,03/05/2017,1344826,4842.6,Agency Staff
North West Leicestershire District Council,31UH,Finance,Exchequer Services,EXCH,Comensura Limited,A036958,03/05/2017,1344942,28982.58,Agency Staff
North West Leicestershire District Council,31UH,Street Management,Environment Transport,ENOT,Anderson Commercials Limited,A033469,03/05/2017,1344946,276,Training Course
North West Leicestershire District Council,31UH,Street Management,Environment Transport,ENOT,Johnston Sweepers Ltd,A039355,03/05/2017,1344950,506.4,Repairs - Parts
North West Leicestershire District Council,31UH,Legal & Democratic,Legal Services,LDLS,Lawyers in Local Government,A040667,03/05/2017,1344953,250,Books & Publications
North West Leicestershire District Council,31UH,Chief Exec,Chief Executive,CHEX,District Councils' Network,A039416,03/05/2017,1344954,410,Subscriptions
North West Leicestershire District Council,31UH,Housing,HRA Performance & Business Support,HRAPBS,Love2Reward,A036807,03/05/2017,1344956,406,High Street Voucher Scheme
North West Leicestershire District Council,31UH,Housing,HRA Older Persons Service,HRAOPS,Tunstall Healthcare (UK) Limited,A001701,03/05/2017,1344958,450,Alarm System Telephones
North West Leicestershire District Council,31UH,Housing Repairs,HRA Housing Repairs & Maintenance,HRAHRM,Cresswell Property Surveys,A022373,03/05/2017,1344959,1055,Legal & Professional Services
North West Leicestershire District Council,31UH,Housing Repairs,HRA Housing Repairs & Maintenance,HRAHRM,Cresswell Property Surveys,A022373,03/05/2017,1344960,1620,Legal & Professional Services
North West Leicestershire District Council,31UH,Housing Repairs,HRA Housing Repairs & Maintenance,HRAHRM,Laker BMS Ltd,A031787,03/05/2017,1344961,285,Housing repairs
North West Leicestershire District Council,31UH,Leisure Centres,Hood Park Leisure Centre,HPLC,Lift & Engineering Services Ltd,A042320,03/05/2017,1344963,1168.6,General Repairs
North West Leicestershire District Council,31UH,Leisure & Culture,Cultural Services Arts & Events,CULTEV,Mantle Community Arts Limited,A001039,03/05/2017,1344974,3500,Grants
North West Leicestershire District Council,31UH,Chief Exec,Chief Executive,CHEX,Local Government Association,A002189,03/05/2017,1345003,9099.38,Subscriptions
North West Leicestershire District Council,31UH,Chief Exec,Chief Executive,CHEX,Emap Publishing Ltd,A042234,03/05/2017,1345004,299,Subscriptions
North West Leicestershire District Council,31UH,Legal & Democratic,Electoral & Land Charges,LDELC,Xpress Software Solutions,A041342,03/05/2017,1345007,12500,Operational Equipment
North West Leicestershire District Council,31UH,Corporate Director,Human Resources,HR,Gatling Gun Productions,A041319,03/05/2017,1345009,290,Training Expenditure
North West Leicestershire District Council,31UH,Legal & Democratic,Business Focus Group,BFG,Broxap Limited,A031850,,1345013,584.5,Operational Equipment
North West Leicestershire District Council,31UH,Finance,Housing Benefits,BENS,Capita Business Services Ltd,A002968,24/05/2017,1345016,1125,Revs & Bens expenditure funded by grants
North West Leicestershire District Council,31UH,Housing Repairs,HRA Housing Repairs & Maintenance,HRAHRM,Orbis Property Protection Ltd,A028149,03/05/2017,1345023,520,Void Property Clearance Services
North West Leicestershire District Council,31UH,Housing Repairs,HRA Housing Repairs & Maintenance,HRAHRM,Orbis Property Protection Ltd,A028149,03/05/2017,1345024,325,Void Property Clearance Services
North West Leicestershire District Council,31UH,Housing Repairs,HRA Housing Repairs & Maintenance,HRAHRM,Orbis Property Protection Ltd,A028149,03/05/2017,1345030,255,Void Property Clearance Services
North West Leicestershire District Council,31UH,Housing Repairs,HRA Housing Repairs & Maintenance,HRAHRM,Orbis Property Protection Ltd,A028149,03/05/2017,1345032,936,Void Property Clearance Services
North West Leicestershire District Council,31UH,Housing Repairs,HRA Housing Repairs & Maintenance,HRAHRM,Orbis Property Protection Ltd,A028149,03/05/2017,1345044,325,Void Property Clearance Services
North West Leicestershire District Council,31UH,Housing Repairs,HRA Housing Repairs & Maintenance,HRAHRM,Lovell Partnerships Ltd,A039973,03/05/2017,1345046,57633.35,Decent Homes
North West Leicestershire District Council,31UH,Housing Repairs,HRA Housing Repairs & Maintenance,HRAHRM,Emperor Scaffolding Limited,A038405,03/05/2017,1345047,400,Hire Of Operational Equipment
North West Leicestershire District Council,31UH,Housing Repairs,HRA Housing Repairs & Maintenance,HRAHRM,Emperor Scaffolding Limited,A038405,03/05/2017,1345050,375,Hire Of Operational Equipment
North West Leicestershire District Council,31UH,Housing Strategy,Community - Housing Strategy,HS,Leicestershire County Council,A000950,03/05/2017,1345094,4200,Grants
North West Leicestershire District Council,31UH,Information Technology,ICT Services,ICT,ACS Systems (UK) Ltd T/a ACS Office Solutions,A043447,03/05/2017,1345095,720,Admin Equipment - Purchased & Recharged
North West Leicestershire District Council,31UH,Planning & Development,Environment Community Planning,ECP,Buyer Direct Ltd (T/A Rock Awnings),A043960,03/05/2017,1345097,941.09,Event Equipment
North West Leicestershire District Council,31UH,Leisure Centres,Hood Park Leisure Centre,HPLC,Audience Systems Limited,A033909,24/05/2017,1345115,345.98,Recreational Equipment
North West Leicestershire District Council,31UH,Property Services,Property Facilities Management,PROPFM,Regarde Security Ltd,A013049,03/05/2017,1345117,524.8,Building Security
North West Leicestershire District Council,31UH,Property Services,Property Facilities Management,PROPFM,LTT Vending Limited,A037981,03/05/2017,1345119,500,Operational Equipment
North West Leicestershire District Council,31UH,Corporate Director,Human Resources,HR,Inchcape Fleet Solutions,A039405,03/05/2017,1345120,524.59,Vehicle Leasing
North West Leicestershire District Council,31UH,Housing Repairs,HRA Housing Repairs & Maintenance,HRAHRM,Aspect Contracts Limited,A041868,03/05/2017,1345124,370,Contract Payments (Dws) Ext
North West Leicestershire District Council,31UH,Housing Repairs,HRA Housing Repairs & Maintenance,HRAHRM,Aspect Contracts Limited,A041868,03/05/2017,1345125,572,Contract Payments (Dws) Ext
North West Leicestershire District Council,31UH,Housing Repairs,HRA Housing Repairs & Maintenance,HRAHRM,Orbis Property Protection Ltd,A028149,03/05/2017,1345127,425,Void Property Clearance Services
North West Leicestershire District Council,31UH,Housing Repairs,HRA Housing Repairs & Maintenance,HRAHRM,Aspect Contracts Limited,A041868,03/05/2017,1345129,325,Contract Payments (Dws) Ext
North West Leicestershire District Council,31UH,Property Services,Property Commercial Lettings,PROPCL,Coalville Cleaning Services,A003037,03/05/2017,1345138,558.06,Contract Cleaning
North West Leicestershire District Council,31UH,Property Services,Property Commercial Lettings,PROPCL,Coalville Cleaning Services,A003037,03/05/2017,1345139,289.95,Contract Cleaning
North West Leicestershire District Council,31UH,Property Services,Property Facilities Management,PROPFM,TECSERV UK LIMITED,A028261,17/05/2017,1345140,381.14,General Repairs
North West Leicestershire District Council,31UH,Environmental Health,Environmental Health & Licensing,EEHL,ABC Food Safety Ltd,A031298,10/05/2017,1345144,750,Training Course
North West Leicestershire District Council,31UH,Finance,Financial Planning,FINPLA,Blaby District Council,A000180,03/05/2017,1345145,422.65,Training Expenses
North West Leicestershire District Council,31UH,Finance,Financial Planning,FINPLA,NHS West Leicestershire,A042958,03/05/2017,1345154,20438.77,Section 106 Contributions
North West Leicestershire District Council,31UH,Housing,HRA Housing Management,HRAHM,St Marys TARA,A042249,03/05/2017,1345156,600,Grants
North West Leicestershire District Council,31UH,Information Technology,ICT Services,ICT,ACS Systems (UK) Ltd T/a ACS Office Solutions,A043447,03/05/2017,1345157,8150,Admin Equipment - Purchased & Recharged
North West Leicestershire District Council,31UH,Planning & Development,Environment - Town Centre/CCTV,ECCTV,Severn Trent Water Limited,A001468,03/05/2017,1345158,388.74,Water Charges (Metered)
North West Leicestershire District Council,31UH,Housing Repairs,HRA Housing Repairs & Maintenance,HRAHRM,Baily Garner LLP,A043845,24/05/2017,1345163,2375,Legal & Professional Services
North West Leicestershire District Council,31UH,Housing Repairs,HRA Housing Repairs & Maintenance,HRAHRM,Baily Garner LLP,A043845,24/05/2017,1345164,3750,Legal & Professional Services
North West Leicestershire District Council,31UH,Street Management,Environment Transport,ENOT,Calor Gas Limited,A032686,10/05/2017,1345166,1017.62,Gas
North West Leicestershire District Council,31UH,Property Services,Property Commercial Lettings,PROPCL,Moira Furnace Museum Trust Ltd,A001136,10/05/2017,1345167,1404.83,Water Charges (Metered)
North West Leicestershire District Council,31UH,Street Management,Environment - Street Scene,ESS,Metric Group Ltd (Sales),A028996,10/05/2017,1345168,252,Subscriptions
North West Leicestershire District Council,31UH,Housing,HRA Performance & Business Support,HRAPBS,Michael Page International Recruitment Ltd,A041893,10/05/2017,1345169,2017.75,Agency Staff
North West Leicestershire District Council,31UH,Leisure Centres,Hood Park Leisure Centre,HPLC,John Merison BMC Ltd,A001092,10/05/2017,1345171,585,General Repairs
North West Leicestershire District Council,31UH,Leisure Centres,Hermitage Leisure Centre,HLC,Mclean Decorators Ltd,A001069,10/05/2017,1345172,504,General Repairs
North West Leicestershire District Council,31UH,Housing Repairs,HRA Housing Repairs & Maintenance,HRAHRM,Sure Maintenance Ltd,A040460,10/05/2017,1345174,2053.15,Plumbing & Heating
North West Leicestershire District Council,31UH,Housing Repairs,HRA Housing Repairs & Maintenance,HRAHRM,Sure Maintenance Ltd,A040460,10/05/2017,1345175,19084.54,Plumbing & Heating
North West Leicestershire District Council,31UH,Corporate Director,Human Resources,HR,ESPO,A000958,17/05/2017,1345177,315,Operational Equipment
North West Leicestershire District Council,31UH,Street Management,Environment Transport,ENOT,Admiral Cleaning Supplies Ltd,A040930,10/05/2017,1345178,259.07,Operational Equipment
North West Leicestershire District Council,31UH,Information Technology,ICT Services,ICT,Idox Software Ltd,A034157,10/05/2017,1345179,20450,Admin Equipment - Maintenance
North West Leicestershire District Council,31UH,Leisure & Culture,Cultural Services TIC,CULTIC,Leicestershire County Council,A000950,10/05/2017,1345184,675,Room Hire
North West Leicestershire District Council,31UH,Legal & Democratic,Legal Services,LDLS,Martin Lee & Co,A030613,10/05/2017,1345193,1230,External Legal Fees & Advice
North West Leicestershire District Council,31UH,Legal & Democratic,Legal Services,LDLS,Marrons Shakespeares,A041538,10/05/2017,1345195,1451.83,External Legal Fees & Advice
North West Leicestershire District Council,31UH,Legal & Democratic,Legal Services,LDLS,Marrons Shakespeares,A041538,10/05/2017,1345196,8750,External Legal Fees & Advice
North West Leicestershire District Council,31UH,Housing,HRA Housing Management,HRAHM,Tunstall Healthcare (UK) Limited,A001701,10/05/2017,1345197,710,Marketing
North West Leicestershire District Council,31UH,Housing,HRA Housing Management,HRAHM,Tunstall Healthcare (UK) Limited,A001701,10/05/2017,1345198,1122,Marketing
North West Leicestershire District Council,31UH,Leisure Centres,Hood Park Leisure Centre,HPLC,Zoggs International Ltd,A001833,10/05/2017,1345200,2176.38,Leisure centre Equipment
North West Leicestershire District Council,31UH,Leisure Centres,Hood Park Leisure Centre,HPLC,Zoggs International Ltd,A001833,17/05/2017,1345201,2107.89,Leisure centre Equipment
North West Leicestershire District Council,31UH,Street Management,Environment Transport,ENOT,Berendsen Uk Ltd,A001600,10/05/2017,1345202,348.73,Protective Clothing
North West Leicestershire District Council,31UH,Leisure Centres,Hermitage Leisure Centre,HLC,Esg Pool Ventilation Ltd,A000521,24/05/2017,1345204,1295,Service Contracts
North West Leicestershire District Council,31UH,Property Services,Property Facilities Management,PROPFM,Rentokil Initial UK Limited,A037013,10/05/2017,1345206,1492.77,General Repairs
North West Leicestershire District Council,31UH,Street Management,Environment Transport,ENOT,Certas Energy Uk Ltd,A043448,10/05/2017,1345212,517.77,Fuel
North West Leicestershire District Council,31UH,Street Management,Environment Transport,ENOT,Certas Energy Uk Ltd,A043448,10/05/2017,1345213,16654.92,Fuel
North West Leicestershire District Council,31UH,Leisure & Culture,Sport & Physical Activity,SPA,Hinckley & Bosworth Borough Council,A042269,10/05/2017,1345214,344.81,Printing Services
North West Leicestershire District Council,31UH,Finance,Exchequer Services,EXCH,Comensura Limited,A036958,10/05/2017,1345215,27600.14,Agency Staff
North West Leicestershire District Council,31UH,Leisure Centres,Hermitage Leisure Centre,HLC,MDA Promotions,A036694,10/05/2017,1345217,10520,Ticket Sales
North West Leicestershire District Council,31UH,Leisure Centres,Hermitage Leisure Centre,HLC,Admiral Cleaning Supplies Ltd,A040930,10/05/2017,1345220,409.41,Consumable Cleaning Materials/Hygiene
North West Leicestershire District Council,31UH,Leisure Centres,Hood Park Leisure Centre,HPLC,T Denman & Sons (Melton Mowbray) Ltd,A030887,10/05/2017,1345242,1095,General Repairs
North West Leicestershire District Council,31UH,Leisure Centres,Hood Park Leisure Centre,HPLC,Sportsart Fitness UK Ltd,A041819,10/05/2017,1345250,14315.2,Machinery & Equipment
North West Leicestershire District Council,31UH,Leisure Centres,Hermitage Leisure Centre,HLC,Hugglescote Community Centre,A028420,10/05/2017,1345267,308,Room Hire
North West Leicestershire District Council,31UH,Leisure Centres,Hermitage Leisure Centre,HLC,Hugglescote Community Centre,A028420,10/05/2017,1345268,257,Room Hire
North West Leicestershire District Council,31UH,Leisure Centres,Hermitage Leisure Centre,HLC,Nisbets Plc,A007087,10/05/2017,1345270,1234.97,Catering & Bar Equipment
North West Leicestershire District Council,31UH,Leisure Centres,Castle Donington Community College,CDCC,Elliott Group Limited,A005413,10/05/2017,1345271,505.72,Secure Storage
North West Leicestershire District Council,31UH,Leisure Centres,Hermitage Leisure Centre,HLC,Fitness Industry Association Ltd,A031753,10/05/2017,1345276,655,Licences
North West Leicestershire District Council,31UH,Leisure Centres,Hermitage Bar & Catering,HLBC,LWC - Birmingham,A039915,10/05/2017,1345277,7032.74,Bar Provisions
North West Leicestershire District Council,31UH,Leisure Centres,Hermitage Bar & Catering,HLBC,Snackline Direct Ltd,A042489,10/05/2017,1345278,557.74,Vending Machine Provisions
North West Leicestershire District Council,31UH,Leisure Centres,Hermitage Bar & Catering,HLBC,Snackline Direct Ltd,A042489,10/05/2017,1345279,1037.27,Catering Provisions
North West Leicestershire District Council,31UH,Leisure Centres,Hood Park Leisure Centre,HPLC,William Freer Ltd,A000639,10/05/2017,1345281,378.44,General Repairs
North West Leicestershire District Council,31UH,Leisure Centres,Hood Park Leisure Centre,HPLC,Ivanhoe Community College,A000852,10/05/2017,1345282,3874.63,Electricity
North West Leicestershire District Council,31UH,Leisure Centres,Hood Park Leisure Centre,HPLC,Severn Trent Water Limited,A001468,10/05/2017,1345283,877.99,Water Charges (Metered)
North West Leicestershire District Council,31UH,Leisure Centres,Hood Park Leisure Centre,HPLC,Severn Trent Water Limited,A001468,10/05/2017,1345284,860.04,Water Charges (Metered)
North West Leicestershire District Council,31UH,Leisure Centres,Hood Park Leisure Centre,HPLC,Severn Trent Water Limited,A001468,10/05/2017,1345285,1094.77,Water Charges (Metered)
North West Leicestershire District Council,31UH,Housing Repairs,HRA Housing Repairs & Maintenance,HRAHRM,Kier Services Maintenance East Ltd,A039980,10/05/2017,1345287,487.71,Decent Homes
North West Leicestershire District Council,31UH,Housing Repairs,HRA Housing Repairs & Maintenance,HRAHRM,Kier Services Maintenance East Ltd,A039980,10/05/2017,1345288,435.8,Decent Homes
North West Leicestershire District Council,31UH,Housing Repairs,HRA Housing Repairs & Maintenance,HRAHRM,Kier Services Maintenance East Ltd,A039980,10/05/2017,1345289,2580.06,Decent Homes
North West Leicestershire District Council,31UH,Housing Repairs,HRA Housing Repairs & Maintenance,HRAHRM,Kier Services Maintenance East Ltd,A039980,10/05/2017,1345290,860.37,Decent Homes
North West Leicestershire District Council,31UH,Housing Repairs,HRA Housing Repairs & Maintenance,HRAHRM,Kier Services Maintenance East Ltd,A039980,10/05/2017,1345291,3959.44,Decent Homes
North West Leicestershire District Council,31UH,Housing Repairs,HRA Housing Repairs & Maintenance,HRAHRM,Kier Services Maintenance East Ltd,A039980,10/05/2017,1345292,2611.29,Decent Homes
North West Leicestershire District Council,31UH,Housing Repairs,HRA Housing Repairs & Maintenance,HRAHRM,Kier Services Maintenance East Ltd,A039980,10/05/2017,1345293,2580.1,Decent Homes
North West Leicestershire District Council,31UH,Housing Repairs,HRA Housing Repairs & Maintenance,HRAHRM,Kier Services Maintenance East Ltd,A039980,10/05/2017,1345294,3040.22,Decent Homes
North West Leicestershire District Council,31UH,Housing Repairs,HRA Housing Repairs & Maintenance,HRAHRM,Kier Services Maintenance East Ltd,A039980,10/05/2017,1345295,3420.25,Decent Homes
North West Leicestershire District Council,31UH,Housing Repairs,HRA Housing Repairs & Maintenance,HRAHRM,Kier Services Maintenance East Ltd,A039980,10/05/2017,1345296,3512.38,Decent Homes
North West Leicestershire District Council,31UH,Housing Repairs,HRA Housing Repairs & Maintenance,HRAHRM,Kier Services Maintenance East Ltd,A039980,10/05/2017,1345297,487.74,Decent Homes
North West Leicestershire District Council,31UH,Housing Repairs,HRA Housing Repairs & Maintenance,HRAHRM,Kier Services Maintenance East Ltd,A039980,10/05/2017,1345298,3724.01,Decent Homes
North West Leicestershire District Council,31UH,Housing Repairs,HRA Housing Repairs & Maintenance,HRAHRM,Kier Services Maintenance East Ltd,A039980,10/05/2017,1345299,2471.04,Decent Homes
North West Leicestershire District Council,31UH,Housing Repairs,HRA Housing Repairs & Maintenance,HRAHRM,Kier Services Maintenance East Ltd,A039980,10/05/2017,1345300,2513.07,Decent Homes
North West Leicestershire District Council,31UH,Housing Repairs,HRA Housing Repairs & Maintenance,HRAHRM,Kier Services Maintenance East Ltd,A039980,10/05/2017,1345301,2968.51,Decent Homes
North West Leicestershire District Council,31UH,Housing Repairs,HRA Housing Repairs & Maintenance,HRAHRM,Kier Services Maintenance East Ltd,A039980,10/05/2017,1345302,6666.2,Decent Homes
North West Leicestershire District Council,31UH,Housing Repairs,HRA Housing Repairs & Maintenance,HRAHRM,Kier Services Maintenance East Ltd,A039980,10/05/2017,1345303,3441.76,Decent Homes
North West Leicestershire District Council,31UH,Housing Repairs,HRA Housing Repairs & Maintenance,HRAHRM,Kier Services Maintenance East Ltd,A039980,10/05/2017,1345304,286.79,Decent Homes
North West Leicestershire District Council,31UH,Housing Repairs,HRA Housing Repairs & Maintenance,HRAHRM,Kier Services Maintenance East Ltd,A039980,10/05/2017,1345305,3228.15,Decent Homes
North West Leicestershire District Council,31UH,Housing Repairs,HRA Housing Repairs & Maintenance,HRAHRM,Kier Services Maintenance East Ltd,A039980,10/05/2017,1345306,860.37,Decent Homes
North West Leicestershire District Council,31UH,Housing Repairs,HRA Housing Repairs & Maintenance,HRAHRM,Kier Services Maintenance East Ltd,A039980,10/05/2017,1345307,3040.22,Decent Homes
North West Leicestershire District Council,31UH,Housing Repairs,HRA Housing Repairs & Maintenance,HRAHRM,Kier Services Maintenance East Ltd,A039980,10/05/2017,1345308,2580.06,Decent Homes
North West Leicestershire District Council,31UH,Housing Repairs,HRA Housing Repairs & Maintenance,HRAHRM,Kier Services Maintenance East Ltd,A039980,10/05/2017,1345309,3740.14,Decent Homes
North West Leicestershire District Council,31UH,Housing Repairs,HRA Housing Repairs & Maintenance,HRAHRM,Kier Services Maintenance East Ltd,A039980,10/05/2017,1345310,3495.3,Decent Homes
North West Leicestershire District Council,31UH,Housing Repairs,HRA Housing Repairs & Maintenance,HRAHRM,Kier Services Maintenance East Ltd,A039980,10/05/2017,1345311,635.41,Decent Homes
North West Leicestershire District Council,31UH,Housing Repairs,HRA Housing Repairs & Maintenance,HRAHRM,Kier Services Maintenance East Ltd,A039980,10/05/2017,1345312,3420.25,Decent Homes
North West Leicestershire District Council,31UH,Housing Repairs,HRA Housing Repairs & Maintenance,HRAHRM,Kier Services Maintenance East Ltd,A039980,10/05/2017,1345313,2303.98,Decent Homes
North West Leicestershire District Council,31UH,Corporate Director,Human Resources,HR,Penna,A043757,10/05/2017,1345320,375.61,Employee Advertising
North West Leicestershire District Council,31UH,Corporate Director,Human Resources,HR,Leicestershire County Council Central Print,A037238,10/05/2017,1345321,26332,Local Resilience Forum- Contributions
North West Leicestershire District Council,31UH,Information Technology,ICT Services,ICT,Firmstep,A030931,10/05/2017,1345322,7938,Admin Equipment - Maintenance
North West Leicestershire District Council,31UH,Information Technology,ICT Services,ICT,Firmstep,A030931,10/05/2017,1345323,600,Contract Payments (Other) Ext
North West Leicestershire District Council,31UH,Information Technology,ICT Services,ICT,Esri (Uk) Ltd,A016303,10/05/2017,1345333,14285,Admin Equipment - Purchased & Recharged
North West Leicestershire District Council,31UH,Street Management,Environment Transport,ENOT,Bandvulc Tyres Ltd,A033268,10/05/2017,1345342,2400,Transport Costs - Tyres
North West Leicestershire District Council,31UH,Information Technology,ICT Services,ICT,Premier Paper Group,A042438,10/05/2017,1345344,527.5,Consumable Materials
North West Leicestershire District Council,31UH,Planning & Development,Environment Community Planning,ECP,Charnwood Borough Council,A000323,17/05/2017,1345345,5224.22,Computer Software Maintenance
North West Leicestershire District Council,31UH,Leisure Centres,Hermitage Leisure Centre,HLC,Admiral Cleaning Supplies Ltd,A040930,24/05/2017,1345349,1301.68,Water Treatment
North West Leicestershire District Council,31UH,Housing Repairs,HRA Housing Repairs & Maintenance,HRAHRM,Michael Dyson Associates Ltd,A028431,10/05/2017,1345351,560,Legal & Professional Services
North West Leicestershire District Council,31UH,Housing Repairs,HRA Housing Repairs & Maintenance,HRAHRM,Sure Maintenance Ltd,A040460,10/05/2017,1345352,750,Plumbing & Heating
North West Leicestershire District Council,31UH,Housing,HRA Housing Management,HRAHM,Housing Partners Ltd,A033400,10/05/2017,1345355,4510,Legal & Professional Services
North West Leicestershire District Council,31UH,Housing,HRA Housing Management,HRAHM,Redacted-personal data,A044000,10/05/2017,1345358,1000,Under Occupancy Incentives
North West Leicestershire District Council,31UH,Chief Exec,Chief Executive,CHEX,David Nash ( trading as Koda Consulting),A043827,10/05/2017,1345360,2330,Consultants Fees
North West Leicestershire District Council,31UH,Housing Repairs,HRA Housing Repairs & Maintenance,HRAHRM,Hays Human Resources,A024378,10/05/2017,1345361,1367.4,Agency Staff
North West Leicestershire District Council,31UH,Housing Repairs,HRA Housing Repairs & Maintenance,HRAHRM,Hays Human Resources,A024378,10/05/2017,1345362,1367.4,Agency Staff
North West Leicestershire District Council,31UH,Housing Repairs,HRA Housing Repairs & Maintenance,HRAHRM,Hays Human Resources,A024378,10/05/2017,1345363,1240.2,Agency Staff
North West Leicestershire District Council,31UH,Housing Repairs,HRA Housing Repairs & Maintenance,HRAHRM,Hays Human Resources,A024378,10/05/2017,1345364,1481.88,Agency Staff
North West Leicestershire District Council,31UH,Housing Repairs,HRA Housing Repairs & Maintenance,HRAHRM,Hays Human Resources,A024378,10/05/2017,1345365,1440.54,Agency Staff
North West Leicestershire District Council,31UH,Housing Repairs,HRA Housing Repairs & Maintenance,HRAHRM,Hays Human Resources,A024378,10/05/2017,1345366,1386.48,Agency Staff
North West Leicestershire District Council,31UH,Housing Repairs,HRA Housing Repairs & Maintenance,HRAHRM,Hays Human Resources,A024378,10/05/2017,1345367,1431,Agency Staff
North West Leicestershire District Council,31UH,Housing Repairs,HRA Housing Repairs & Maintenance,HRAHRM,Hays Human Resources,A024378,10/05/2017,1345368,1462.8,Agency Staff
North West Leicestershire District Council,31UH,Housing Repairs,HRA Housing Repairs & Maintenance,HRAHRM,Hays Human Resources,A024378,10/05/2017,1345369,858.6,Agency Staff
North West Leicestershire District Council,31UH,Housing Repairs,HRA Housing Repairs & Maintenance,HRAHRM,Hays Human Resources,A024378,10/05/2017,1345370,1335.6,Agency Staff
North West Leicestershire District Council,31UH,Housing Repairs,HRA Housing Repairs & Maintenance,HRAHRM,Hays Human Resources,A024378,10/05/2017,1345371,1272,Agency Staff
North West Leicestershire District Council,31UH,Housing Repairs,HRA Housing Repairs & Maintenance,HRAHRM,Hays Human Resources,A024378,10/05/2017,1345372,1176.6,Agency Staff
North West Leicestershire District Council,31UH,Housing Repairs,HRA Housing Repairs & Maintenance,HRAHRM,Timber-Link Fencing Ltd,A033297,10/05/2017,1345376,2400,External Materials
North West Leicestershire District Council,31UH,Housing Repairs,HRA Housing Repairs & Maintenance,HRAHRM,Timber-Link Fencing Ltd,A033297,10/05/2017,1345379,945,External Materials
North West Leicestershire District Council,31UH,Finance,Financial Planning,FINPLA,Lancashire County Council,A042295,09/05/2017,1345380,1500000,Policy Lending
North West Leicestershire District Council,31UH,Finance,Financial Planning,FINPLA,Public Works Loan Board,A001340,09/05/2017,1345383,43125,Policy Lending
North West Leicestershire District Council,31UH,Housing Repairs,HRA Housing Repairs & Maintenance,HRAHRM,Collective Enterprises Ltd,A036453,09/05/2017,1345389,46316.44,General Materials
North West Leicestershire District Council,31UH,Finance,Financial Planning,FINPLA,Department for Communities & Local Government,A028518,09/05/2017,1345390,149739.43,Subsidy Receipts & Repayments
North West Leicestershire District Council,31UH,Finance,Exchequer Services,EXCH,Total Gas & Power,A033385,09/05/2017,1345391,32384.74,Electricity
North West Leicestershire District Council,31UH,Finance,Exchequer Services,EXCH,H M Land Registry,A000713,09/05/2017,1345392,428,Land Registry Searches
North West Leicestershire District Council,31UH,Housing,HRA Housing Management,HRAHM,Social Landlords Crime &,A035396,10/05/2017,1345395,700,Legal & Professional Services
North West Leicestershire District Council,31UH,Leisure & Culture,Sport & Physical Activity,SPA,Leicestershire County Council,A000950,17/05/2017,1345396,8735,Sports Forum Contribution
North West Leicestershire District Council,31UH,Environmental Health,Environmental Health & Licensing,EEHL,Eville And Jones Limited,A033670,17/05/2017,1345402,1051.99,Vet Inspection
North West Leicestershire District Council,31UH,Planning & Development,Environment Community Planning,ECP,Broadland Guarding Services Ltd,A042635,17/05/2017,1345405,4310.01,Agency Staff
North West Leicestershire District Council,31UH,Leisure Centres,Hood Park Leisure Centre,HPLC,Dura-Sport (Leisure Care) Ltd,A041815,17/05/2017,1345407,280,General Repairs
North West Leicestershire District Council,31UH,Leisure Centres,Hood Park Leisure Centre,HPLC,Dura-Sport (Leisure Care) Ltd,A041815,17/05/2017,1345408,350,General Repairs
North West Leicestershire District Council,31UH,Street Management,Environment Transport,ENOT,Ford & Slater Group Ltd,A000625,10/05/2017,1345409,533.89,Vehicle related Costs
North West Leicestershire District Council,31UH,Planning & Development,Environment Community Planning,ECP,Capstone Consultancy Engineers Ltd,A043933,10/05/2017,1345410,475,External Legal Fees & Advice
North West Leicestershire District Council,31UH,Planning & Development,Environment Community Planning,ECP,Jon Etchells Consulting Ltd,A029305,10/05/2017,1345411,971,External Legal Fees & Advice
North West Leicestershire District Council,31UH,Street Management,Environment Waste Management,ENOWM,Whitespace Work Software Ltd,A041243,10/05/2017,1345425,6038.35,Operational Equipment
North West Leicestershire District Council,31UH,Street Management,Environment Waste Management,ENOWM,Whitespace Work Software Ltd,A041243,10/05/2017,1345426,3174.09,Operational Equipment
North West Leicestershire District Council,31UH,Street Management,Environment Waste Management,ENOWM,Whitespace Work Software Ltd,A041243,10/05/2017,1345427,5454,Operational Equipment
North West Leicestershire District Council,31UH,Street Management,Environment Transport,ENOT,Regarde Security Ltd,A013049,10/05/2017,1345428,262.4,Security Services
North West Leicestershire District Council,31UH,Information Technology,ICT Services,ICT,Freedom Communications (UK) Ltd,A032826,10/05/2017,1345430,23404,Phone system & network equipment
North West Leicestershire District Council,31UH,Information Technology,ICT Services,ICT,Kingsfield Computer Products Ltd,A039732,10/05/2017,1345431,831.44,Administrative Equipment
North West Leicestershire District Council,31UH,Street Management,Environment Transport,ENOT,Westbury Industrial Supplies Limited,A009933,10/05/2017,1345432,464.3,Protective Clothing
North West Leicestershire District Council,31UH,Information Technology,ICT Services,ICT,Virgin Media Business,A035373,10/05/2017,1345436,313.53,Computing
North West Leicestershire District Council,31UH,Information Technology,ICT Services,ICT,Virgin Media Business,A008908,10/05/2017,1345438,2982.36,Admin Equipment - Maintenance
North West Leicestershire District Council,31UH,Housing,HRA Performance & Business Support,HRAPBS,Michael Page International Recruitment Ltd,A041893,10/05/2017,1345442,1614.2,Agency Staff
North West Leicestershire District Council,31UH,Property Services,Property Commercial Lettings,PROPCL,Purchase Power,A008204,10/05/2017,1345443,2020,Postages
North West Leicestershire District Council,31UH,Housing Repairs,HRA Housing Repairs & Maintenance,HRAHRM,H20 Utilities Ltd,A043865,10/05/2017,1345500,750,Associated Drainage Services
North West Leicestershire District Council,31UH,Housing Repairs,HRA Housing Repairs & Maintenance,HRAHRM,H20 Utilities Ltd,A043865,10/05/2017,1345502,500,Associated Drainage Services
North West Leicestershire District Council,31UH,Housing Repairs,HRA Housing Repairs & Maintenance,HRAHRM,Orbis Property Protection Ltd,A028149,10/05/2017,1345503,448,Void Property Clearance Services
North West Leicestershire District Council,31UH,Housing Repairs,HRA Housing Repairs & Maintenance,HRAHRM,National Grid Gas Plc,A032629,10/05/2017,1345511,527.62,Gas related Services
North West Leicestershire District Council,31UH,Housing Repairs,HRA Housing Repairs & Maintenance,HRAHRM,National Grid Gas Plc,A032629,10/05/2017,1345512,527.62,Gas related Services
North West Leicestershire District Council,31UH,Housing Repairs,HRA Housing Repairs & Maintenance,HRAHRM,National Grid Gas Plc,A032629,10/05/2017,1345513,527.62,Gas related Services
North West Leicestershire District Council,31UH,Housing Repairs,HRA Housing Repairs & Maintenance,HRAHRM,National Grid Gas Plc,A032629,10/05/2017,1345514,527.62,Gas related Services
North West Leicestershire District Council,31UH,Housing Repairs,HRA Housing Repairs & Maintenance,HRAHRM,National Grid Gas Plc,A032629,10/05/2017,1345515,527.62,Gas related Services
North West Leicestershire District Council,31UH,Housing Repairs,HRA Housing Repairs & Maintenance,HRAHRM,Timber-Link Fencing Ltd,A033297,10/05/2017,1345516,1000,External Materials
North West Leicestershire District Council,31UH,Housing Repairs,HRA Housing Repairs & Maintenance,HRAHRM,Timber-Link Fencing Ltd,A033297,10/05/2017,1345517,565,External Materials
North West Leicestershire District Council,31UH,Housing Repairs,HRA Housing Repairs & Maintenance,HRAHRM,Timber-Link Fencing Ltd,A033297,10/05/2017,1345518,900,External Materials
North West Leicestershire District Council,31UH,Housing Repairs,HRA Housing Repairs & Maintenance,HRAHRM,Timber-Link Fencing Ltd,A033297,10/05/2017,1345519,500,External Materials
North West Leicestershire District Council,31UH,Housing Repairs,HRA Housing Repairs & Maintenance,HRAHRM,Timber-Link Fencing Ltd,A033297,10/05/2017,1345520,771,External Materials
North West Leicestershire District Council,31UH,Housing Repairs,HRA Housing Repairs & Maintenance,HRAHRM,Timber-Link Fencing Ltd,A033297,10/05/2017,1345521,400,External Materials
North West Leicestershire District Council,31UH,Housing Repairs,HRA Housing Repairs & Maintenance,HRAHRM,Timber-Link Fencing Ltd,A033297,10/05/2017,1345522,1000,External Materials
North West Leicestershire District Council,31UH,Housing Repairs,HRA Housing Repairs & Maintenance,HRAHRM,Timber-Link Fencing Ltd,A033297,10/05/2017,1345523,1000,External Materials
North West Leicestershire District Council,31UH,Legal & Democratic,Legal Services,LDLS,Browne Jacobson LLP,A000251,10/05/2017,1345524,1422.4,Legal & Professional Services
North West Leicestershire District Council,31UH,Legal & Democratic,Legal Services,LDLS,Browne Jacobson LLP,A000251,10/05/2017,1345525,4113.6,External Legal Fees & Advice
North West Leicestershire District Council,31UH,Leisure & Culture,Cultural Services TIC,CULTIC,Ashby DLZ Festival Ltd,A039327,10/05/2017,1345526,1328.4,Ticket Sales
North West Leicestershire District Council,31UH,Leisure & Culture,Cultural Services TIC,CULTIC,Ashby Dramatic Society,A021686,10/05/2017,1345527,1525,Ticket Sales
North West Leicestershire District Council,31UH,Information Technology,ICT Services,ICT,Oracle Corporation UK Ltd.,A036174,10/05/2017,1345528,313.94,Software Licences
North West Leicestershire District Council,31UH,Housing,HRA Housing Management,HRAHM,Redacted-personal data,A044008,10/05/2017,1345529,250,Under Occupancy Incentives
North West Leicestershire District Council,31UH,Planning & Development,Environment - Development Control,EDC,Euro RSCG People T/A Havas People Ltd,A001395,10/05/2017,1345531,738.28,Advertising
North West Leicestershire District Council,31UH,Legal & Democratic,Legal Services,LDLS,Trowers & Hamlins,A031241,10/05/2017,1345534,1400,Legal & Professional Services
North West Leicestershire District Council,31UH,Finance,Exchequer Services,EXCH,British Gas,A042590,10/05/2017,1345535,579.92,Electricity
North West Leicestershire District Council,31UH,Information Technology,ICT Services,ICT,Canon UK Ltd,A040459,17/05/2017,1345536,268.81,Equipment Operating Leases
North West Leicestershire District Council,31UH,Information Technology,ICT Services,ICT,Canon UK Ltd,A040459,17/05/2017,1345539,268.81,Equipment Operating Leases
North West Leicestershire District Council,31UH,Information Technology,ICT Services,ICT,Canon UK Ltd,A040459,17/05/2017,1345540,268.81,Equipment Operating Leases
North West Leicestershire District Council,31UH,Information Technology,ICT Services,ICT,Canon UK Ltd,A040459,17/05/2017,1345541,268.81,Equipment Operating Leases
North West Leicestershire District Council,31UH,Information Technology,ICT Services,ICT,Canon UK Ltd,A040459,17/05/2017,1345542,268.81,Equipment Operating Leases
North West Leicestershire District Council,31UH,Information Technology,ICT Services,ICT,Canon UK Ltd,A040459,17/05/2017,1345543,268.81,Equipment Operating Leases
North West Leicestershire District Council,31UH,Information Technology,ICT Services,ICT,Nottingham City Council,A041558,17/05/2017,1345544,306,EMGWARP Membership
North West Leicestershire District Council,31UH,Leisure Centres,Hermitage Leisure Centre,HLC,Revolution,A001386,17/05/2017,1345546,640.8,Protective Clothing
North West Leicestershire District Council,31UH,Planning & Development,Environment - Development Control,EDC,Stansgate Planning Consultants,A013765,17/05/2017,1345547,4965,External Legal Fees & Advice
North West Leicestershire District Council,31UH,Communications,Corporate - Customer Services,CS,Neopost Limited,A000079,17/05/2017,1345550,3000,Postages
North West Leicestershire District Council,31UH,Corporate Director,Human Resources,HR,Specsavers Corporate Eyecare,A027558,17/05/2017,1345551,525,Eye Care Vouchers
North West Leicestershire District Council,31UH,Corporate Director,Human Resources,HR,Wider Plan Ltd,A043948,17/05/2017,1345552,6155,Staff Benefit Scheme
North West Leicestershire District Council,31UH,Corporate Director,Human Resources,HR,Fields of Learning,A030537,17/05/2017,1345553,7950,Training Course
North West Leicestershire District Council,31UH,Corporate Director,Human Resources,HR,Fields of Learning,A030537,17/05/2017,1345554,600,Training Course
North West Leicestershire District Council,31UH,Street Management,Environment Transport,ENOT,R Massey & Son (Woodville) Ltd,A033258,17/05/2017,1345570,475.75,Repairs - Parts
North West Leicestershire District Council,31UH,Property Services,Property Commercial Lettings,PROPCL,ASA CreditSafe.com (UK) Ltd,A031200,17/05/2017,1345571,900,Credit Reference Services
North West Leicestershire District Council,31UH,Information Technology,ICT Services,ICT,Phoenix Software Limited,A001298,17/05/2017,1345574,674.47,Admin Equipment - Maintenance
North West Leicestershire District Council,31UH,Leisure Centres,Hood Park Leisure Centre,HPLC,Radio Protection Services Limited,A001356,24/05/2017,1345577,1190,Service Contracts
North West Leicestershire District Council,31UH,Leisure Centres,Hermitage Leisure Centre,HLC,Lifesavers Direct,A033109,17/05/2017,1345578,494,Training Expenses
North West Leicestershire District Council,31UH,Street Management,Environment Waste Management,ENOWM,Glasdon UK Ltd,A000671,17/05/2017,1345584,2238.8,Operational Equipment
North West Leicestershire District Council,31UH,Street Management,Environment Waste Management,ENOWM,Ricardo Energy & Environment,A042855,24/05/2017,1345585,6650,Service Improvements
North West Leicestershire District Council,31UH,Housing,HRA Housing Management,HRAHM,Sturgis Snow & Astill LLP,A032635,17/05/2017,1345589,375,Legal & Professional Services
North West Leicestershire District Council,31UH,Communications,Corporate - Customer Services,CS,Neopost Limited,A000079,17/05/2017,1345591,327.49,Operational Equipment
North West Leicestershire District Council,31UH,Information Technology,ICT Services,ICT,ACS Systems (UK) Ltd T/a ACS Office Solutions,A043447,17/05/2017,1345592,973,Computing
North West Leicestershire District Council,31UH,Information Technology,ICT Services,ICT,Canon UK Ltd,A040459,17/05/2017,1345593,4549.96,Equipment Operating Leases
North West Leicestershire District Council,31UH,Property Services,Property Commercial Lettings,PROPCL,Coalville Cleaning Services,A003037,17/05/2017,1345602,291.9,Consumable Cleaning Materials/Hygiene
North West Leicestershire District Council,31UH,Street Management,Environment Transport,ENOT,Calibration Consultancy Services UK Ltd,A038834,17/05/2017,1345603,422.5,Operational Equipment - Rep & Maint
North West Leicestershire District Council,31UH,Leisure & Culture,Sport & Physical Activity,SPA,Housing & Care 21,A042341,17/05/2017,1345610,290,Room Hire
North West Leicestershire District Council,31UH,Finance,Exchequer Services,EXCH,Orange Plc,A018592,17/05/2017,1345611,2031.36,Mobile Telephones
North West Leicestershire District Council,31UH,Information Technology,ICT Services,ICT,Orange Plc,A018592,17/05/2017,1345612,1071.35,Mobile Telephones
North West Leicestershire District Council,31UH,Property Services,Property Facilities Management,PROPFM,John Merison BMC Ltd,A001092,17/05/2017,1345613,2190,Asset Protection
North West Leicestershire District Council,31UH,Leisure Centres,Hermitage Bar & Catering,HLBC,LWC - Birmingham,A039915,17/05/2017,1345621,410,Bar Provisions
North West Leicestershire District Council,31UH,Leisure Centres,Hermitage Leisure Centre,HLC,ENER.G Combined Power Ltd,A034390,17/05/2017,1345623,6441.98,Service Contracts
North West Leicestershire District Council,31UH,Leisure Centres,Hermitage Leisure Centre,HLC,Measham Leisure Centre,A027454,17/05/2017,1345625,2333.26,Measham LC Lifestyle DD
North West Leicestershire District Council,31UH,Leisure Centres,Hermitage Leisure Centre,HLC,Roberts Coaches Limited,A017327,17/05/2017,1345628,675,Hospitality
North West Leicestershire District Council,31UH,Finance,Exchequer Services,EXCH,Comensura Limited,A036958,17/05/2017,1345631,24969.97,Agency Staff
North West Leicestershire District Council,31UH,Leisure Centres,Hood Park Leisure Centre,HPLC,ESPO,A000958,17/05/2017,1345634,350,Operational Equipment
North West Leicestershire District Council,31UH,Street Management,Environment Transport,ENOT,Kovacs Limited,A000906,17/05/2017,1345637,429.72,Repairs - Parts
North West Leicestershire District Council,31UH,Street Management,Environment Parks,ENOP,Platts Harris Ltd,A038987,24/05/2017,1345638,4166,Contract Payments (Other) Ext
North West Leicestershire District Council,31UH,Housing Repairs,HRA Housing Repairs & Maintenance,HRAHRM,ESPO,A000958,17/05/2017,1345641,402,Operational Equipment
North West Leicestershire District Council,31UH,Legal & Democratic,Business Focus Group,BFG,Julia Burkin,A043213,17/05/2017,1345642,2138.71,Consultants Fees
North West Leicestershire District Council,31UH,Housing Repairs,HRA Housing Repairs & Maintenance,HRAHRM,G Purchase Construction Ltd,A032830,17/05/2017,1345646,637.56,Housing repairs
North West Leicestershire District Council,31UH,Housing Repairs,HRA Housing Repairs & Maintenance,HRAHRM,G Purchase Construction Ltd,A032830,17/05/2017,1345649,570.43,Housing repairs
North West Leicestershire District Council,31UH,Housing Repairs,HRA Housing Repairs & Maintenance,HRAHRM,G Purchase Construction Ltd,A032830,17/05/2017,1345650,963.38,Housing repairs
North West Leicestershire District Council,31UH,Housing Repairs,HRA Housing Repairs & Maintenance,HRAHRM,G Purchase Construction Ltd,A032830,17/05/2017,1345651,616.83,Housing repairs
North West Leicestershire District Council,31UH,Housing Repairs,HRA Housing Repairs & Maintenance,HRAHRM,G Purchase Construction Ltd,A032830,17/05/2017,1345652,857.46,Housing repairs
North West Leicestershire District Council,31UH,Housing Repairs,HRA Housing Repairs & Maintenance,HRAHRM,G Purchase Construction Ltd,A032830,17/05/2017,1345653,2211.97,Housing repairs
North West Leicestershire District Council,31UH,Housing Repairs,HRA Housing Repairs & Maintenance,HRAHRM,G Purchase Construction Ltd,A032830,17/05/2017,1345654,919.08,Housing repairs
North West Leicestershire District Council,31UH,Housing Repairs,HRA Housing Repairs & Maintenance,HRAHRM,G Purchase Construction Ltd,A032830,17/05/2017,1345662,461.13,Housing repairs
North West Leicestershire District Council,31UH,Housing Repairs,HRA Housing Repairs & Maintenance,HRAHRM,Laker BMS Ltd,A031787,17/05/2017,1345663,2997.4,Housing repairs
North West Leicestershire District Council,31UH,Housing Repairs,HRA Housing Repairs & Maintenance,HRAHRM,Laker BMS Ltd,A031787,17/05/2017,1345664,3029.23,Housing repairs
North West Leicestershire District Council,31UH,Housing Repairs,HRA Housing Repairs & Maintenance,HRAHRM,TECSERV UK LIMITED,A028261,17/05/2017,1345665,676.48,Door Entry Systems
North West Leicestershire District Council,31UH,Housing Repairs,HRA Housing Repairs & Maintenance,HRAHRM,TECSERV UK LIMITED,A028261,17/05/2017,1345666,278,Door Entry Systems
North West Leicestershire District Council,31UH,Housing Repairs,HRA Housing Repairs & Maintenance,HRAHRM,TECSERV UK LIMITED,A028261,17/05/2017,1345669,608.5,Door Entry Systems
North West Leicestershire District Council,31UH,Housing Repairs,HRA Housing Repairs & Maintenance,HRAHRM,TECSERV UK LIMITED,A028261,17/05/2017,1345671,268.84,Door Entry Systems
North West Leicestershire District Council,31UH,Housing Repairs,HRA Housing Repairs & Maintenance,HRAHRM,TECSERV UK LIMITED,A028261,17/05/2017,1345672,556.23,Door Entry Systems
North West Leicestershire District Council,31UH,Chief Exec,Chief Executive,CHEX,Inghams Farm Shop,A043986,17/05/2017,1345673,450,Catering Supplies
North West Leicestershire District Council,31UH,Housing,HRA Performance & Business Support,HRAPBS,Fire Proof Ltd,A039911,17/05/2017,1345674,1615,Training Course
North West Leicestershire District Council,31UH,Property Services,Property Commercial Lettings,PROPCL,GCS Communications,A015548,17/05/2017,1345676,500,Telephones
North West Leicestershire District Council,31UH,Property Services,Property Commercial Lettings,PROPCL,Moira Furnace Museum Trust Ltd,A001136,17/05/2017,1345680,1288.5,General Repairs
North West Leicestershire District Council,31UH,Housing Repairs,HRA Housing Repairs & Maintenance,HRAHRM,Kier Services Maintenance East Ltd,A039980,17/05/2017,1345681,60102.68,Decent Homes
North West Leicestershire District Council,31UH,Planning & Development,Building Control,EBC,Leicestershire County Council,A027423,17/05/2017,1345683,1561,Search Fees - L.C.C.
North West Leicestershire District Council,31UH,Planning & Development,Building Control,EBC,Leicestershire County Council,A027423,17/05/2017,1345684,3311,Search Fees - L.C.C.
North West Leicestershire District Council,31UH,Environmental Health,Environmental Services,EES,Beaver Bridges Ltd,A043593,17/05/2017,1345686,7935,Bridge repairs/Construction
North West Leicestershire District Council,31UH,Street Management,Environment Parks,ENOP,Baginton Nurseries Ltd,A039715,17/05/2017,1345687,326.7,External Materials
North West Leicestershire District Council,31UH,Neighbourhoods & Communities,N & C Neighbourhoods,NACN,Kegworth Parish Council,A000882,17/05/2017,1345689,500,Grants
North West Leicestershire District Council,31UH,Planning & Development,Environment - Development Control,EDC,Euro RSCG People T/A Havas People Ltd,A001395,17/05/2017,1345692,585.45,Advertising
North West Leicestershire District Council,31UH,Planning & Development,Environment - Development Control,EDC,Euro RSCG People T/A Havas People Ltd,A001395,17/05/2017,1345695,1045.95,Advertising
North West Leicestershire District Council,31UH,Leisure Centres,Hood Park Leisure Centre,HPLC,J P Lennard Ltd,A000969,17/05/2017,1345696,587.36,Operational Equipment
North West Leicestershire District Council,31UH,Leisure Centres,Hood Park Leisure Centre,HPLC,Admiral Cleaning Supplies Ltd,A040930,17/05/2017,1345697,422.96,Consumable Cleaning Materials/Hygiene
North West Leicestershire District Council,31UH,Leisure Centres,Hood Park Leisure Centre,HPLC,J P Lennard Ltd,A000969,17/05/2017,1345698,456.23,Operational Equipment
North West Leicestershire District Council,31UH,Leisure Centres,Hood Park Leisure Centre,HPLC,J P Lennard Ltd,A000969,17/05/2017,1345700,482.1,Leisure centre Equipment
North West Leicestershire District Council,31UH,Leisure Centres,Hood Park Bar and Catering,HPBC,LWC - Birmingham,A039915,17/05/2017,1345702,328.25,Bar Provisions
North West Leicestershire District Council,31UH,Leisure Centres,Hood Park Bar and Catering,HPBC,LWC - Birmingham,A039915,17/05/2017,1345703,263.2,Bar Provisions
North West Leicestershire District Council,31UH,Leisure Centres,Hood Park Leisure Centre,HPLC,DG Golding Skip Hire Ltd,A034994,17/05/2017,1345704,250,General Repairs
North West Leicestershire District Council,31UH,Leisure Centres,Hermitage Leisure Centre,HLC,T Denman & Sons (Melton Mowbray) Ltd,A030887,17/05/2017,1345705,540,Service Contracts
North West Leicestershire District Council,31UH,Leisure Centres,Hood Park Leisure Centre,HPLC,T Denman & Sons (Melton Mowbray) Ltd,A030887,17/05/2017,1345711,663.12,General Repairs
North West Leicestershire District Council,31UH,Leisure Centres,Hood Park Leisure Centre,HPLC,Virgin Media Business,A035373,17/05/2017,1345719,711.49,Telephone Charge / Rental
North West Leicestershire District Council,31UH,Street Management,Environment Transport,ENOT,Innovative Safety Systems Limited,A038664,24/05/2017,1345727,3230,Vehicle Camera/recording Systems
North West Leicestershire District Council,31UH,Street Management,Environment Parks,ENOP,Groundsman Tools & Supplies,A030744,17/05/2017,1345735,524.68,Operational Equipment - Purchases
North West Leicestershire District Council,31UH,Leisure Centres,Castle Donington Community College,CDCC,ESPO,A000958,17/05/2017,1345739,339.88,Stationery
North West Leicestershire District Council,31UH,Chief Exec,Chief Executive,CHEX,Sable Leigh Consultancy Ltd T/A SLC Rail,A042727,17/05/2017,1345740,360,External Legal Fees & Advice
North West Leicestershire District Council,31UH,Planning & Development,Environment Planning Policy,EPP,Edwards & Edwards Consultancy Ltd,A041694,17/05/2017,1345741,470,Consultants Fees
North West Leicestershire District Council,31UH,Street Management,Environment Transport,ENOT,Westbury Industrial Supplies Limited,A009933,17/05/2017,1345742,346.44,Protective Clothing
North West Leicestershire District Council,31UH,Street Management,Environment - Street Scene,ESS,Kings Armoured Security Services Ltd,A004468,17/05/2017,1345755,1096.68,Cash in Transit Service
North West Leicestershire District Council,31UH,Finance,Financial Planning,FINPLA,SG Equipment Finance Limited,A030097,17/05/2017,1345756,1111.77,Non Insurance Damage
North West Leicestershire District Council,31UH,Finance,Financial Planning,FINPLA,SG Equipment Finance Limited,A030097,17/05/2017,1345757,1743,Non Insurance Damage
North West Leicestershire District Council,31UH,Housing Repairs,HRA Housing Repairs & Maintenance,HRAHRM,Western Power Distribution,A038499,17/05/2017,1345758,2538.2,Electricity Connection
North West Leicestershire District Council,31UH,Legal & Democratic,Business Focus Group,BFG,Geoff's Toys,A000665,17/05/2017,1345759,10773.9,Grants
North West Leicestershire District Council,31UH,Legal & Democratic,Legal Services,LDLS,Venn Group Limited,A028530,17/05/2017,1345770,945,Agency Staff
North West Leicestershire District Council,31UH,Housing,HRA Performance & Business Support,HRAPBS,Northern Housing Consortium Ltd,A028253,17/05/2017,1345804,1053.15,Subscriptions
North West Leicestershire District Council,31UH,Housing Repairs,HRA Housing Repairs & Maintenance,HRAHRM,HQN Ltd,A007983,17/05/2017,1345805,600,Training Course
North West Leicestershire District Council,31UH,Housing Repairs,HRA Housing Repairs & Maintenance,HRAHRM,G Purchase Construction Ltd,A032830,17/05/2017,1345806,1007.09,Housing repairs
North West Leicestershire District Council,31UH,Housing Repairs,HRA Housing Repairs & Maintenance,HRAHRM,G Purchase Construction Ltd,A032830,17/05/2017,1345807,1693.04,Housing repairs
North West Leicestershire District Council,31UH,Housing Repairs,HRA Housing Repairs & Maintenance,HRAHRM,G Purchase Construction Ltd,A032830,17/05/2017,1345808,1007.69,Housing repairs
North West Leicestershire District Council,31UH,Housing Repairs,HRA Housing Repairs & Maintenance,HRAHRM,National Grid Gas Plc,A032629,17/05/2017,1345809,527.62,Gas related Services
North West Leicestershire District Council,31UH,Housing Repairs,HRA Housing Repairs & Maintenance,HRAHRM,National Grid Gas Plc,A032629,17/05/2017,1345810,527.62,Gas related Services
North West Leicestershire District Council,31UH,Legal & Democratic,Legal Services,LDLS,Morag Ellis QC,A044021,17/05/2017,1345811,3000,Legal & Professional Services
North West Leicestershire District Council,31UH,Legal & Democratic,Legal Services,LDLS,HMCTS,A033955,16/05/2017,1345812,369,External Legal Fees & Advice
North West Leicestershire District Council,31UH,Corporate Director,Human Resources,HR,The Disclosure & Barring Service,A027625,16/05/2017,1345827,440,Criminal Records Bureau
North West Leicestershire District Council,31UH,Corporate Director,Human Resources,HR,The Disclosure & Barring Service,A027625,16/05/2017,1345828,748,Criminal Records Bureau
North West Leicestershire District Council,31UH,Housing Repairs,HRA Housing Repairs & Maintenance,HRAHRM,Laker BMS Ltd,A031787,17/05/2017,1345829,5633.25,Housing repairs
North West Leicestershire District Council,31UH,Housing Repairs,HRA Housing Repairs & Maintenance,HRAHRM,Laker BMS Ltd,A031787,17/05/2017,1345830,3457.81,Housing repairs
North West Leicestershire District Council,31UH,Housing Repairs,HRA Housing Repairs & Maintenance,HRAHRM,Laker BMS Ltd,A031787,17/05/2017,1345831,3342.61,Housing repairs
North West Leicestershire District Council,31UH,Housing Repairs,HRA Housing Repairs & Maintenance,HRAHRM,Laker BMS Ltd,A031787,17/05/2017,1345832,5140.2,Housing repairs
North West Leicestershire District Council,31UH,Housing Repairs,HRA Housing Repairs & Maintenance,HRAHRM,Laker BMS Ltd,A031787,17/05/2017,1345833,3634.34,Housing repairs
North West Leicestershire District Council,31UH,Housing Repairs,HRA Housing Repairs & Maintenance,HRAHRM,Laker BMS Ltd,A031787,17/05/2017,1345834,4222.51,Housing repairs
North West Leicestershire District Council,31UH,Housing Repairs,HRA Housing Repairs & Maintenance,HRAHRM,Laker BMS Ltd,A031787,17/05/2017,1345835,3405.02,Housing repairs
North West Leicestershire District Council,31UH,Housing Repairs,HRA Housing Repairs & Maintenance,HRAHRM,Laker BMS Ltd,A031787,17/05/2017,1345836,3870.61,Housing repairs
North West Leicestershire District Council,31UH,Housing Repairs,HRA Housing Repairs & Maintenance,HRAHRM,Laker BMS Ltd,A031787,17/05/2017,1345837,915.31,Housing repairs
North West Leicestershire District Council,31UH,Housing Repairs,HRA Housing Repairs & Maintenance,HRAHRM,Laker BMS Ltd,A031787,17/05/2017,1345838,4171.67,Housing repairs
North West Leicestershire District Council,31UH,Leisure Centres,Hermitage Leisure Centre,HLC,MDA Promotions,A036694,17/05/2017,1345839,1000,Ticket Sales
North West Leicestershire District Council,31UH,Street Management,Environment - Street Scene,ESS,Royal Mail Group Plc,A001418,17/05/2017,1345841,389.52,Postages
North West Leicestershire District Council,31UH,Neighbourhoods & Communities,N & C Community Safety,NACCS,Kegworth Village Fair,A044022,17/05/2017,1345842,500,Grants
North West Leicestershire District Council,31UH,Housing,HRA Performance & Business Support,HRAPBS,Coalville Yellow Cabs,A041983,17/05/2017,1345843,302.5,Public Transport
North West Leicestershire District Council,31UH,Housing,HRA Performance & Business Support,HRAPBS,Coalville Yellow Cabs,A041983,17/05/2017,1345844,295.5,Public Transport
North West Leicestershire District Council,31UH,Housing Repairs,HRA Housing Repairs & Maintenance,HRAHRM,G Purchase Construction Ltd,A032830,17/05/2017,1345845,669.38,Housing repairs
North West Leicestershire District Council,31UH,Housing Repairs,HRA Housing Repairs & Maintenance,HRAHRM,G Purchase Construction Ltd,A032830,17/05/2017,1345849,414.2,Housing repairs
North West Leicestershire District Council,31UH,Housing Repairs,HRA Housing Repairs & Maintenance,HRAHRM,G Purchase Construction Ltd,A032830,17/05/2017,1345850,477.51,Housing repairs
North West Leicestershire District Council,31UH,Housing Repairs,HRA Housing Repairs & Maintenance,HRAHRM,G Purchase Construction Ltd,A032830,17/05/2017,1345851,1094.37,Housing repairs
North West Leicestershire District Council,31UH,Housing Repairs,HRA Housing Repairs & Maintenance,HRAHRM,G Purchase Construction Ltd,A032830,17/05/2017,1345853,394.25,Housing repairs
North West Leicestershire District Council,31UH,Leisure Centres,Hermitage Leisure Centre,HLC,Physique Fitness Gym,A038959,17/05/2017,1345854,768,Leisure centre Equipment
North West Leicestershire District Council,31UH,Street Management,Environment Transport,ENOT,Post Office Limited,A008559,17/05/2017,1345855,1750,Licences - Road Fund Licence
North West Leicestershire District Council,31UH,Leisure Centres,Hood Park Leisure Centre,HPLC,Peter Dorrell & Company,A027590,17/05/2017,1345856,1381.25,General Repairs
North West Leicestershire District Council,31UH,Leisure Centres,Hermitage Leisure Centre,HLC,Security Alert UK,A037299,24/05/2017,1345867,540,Security services
North West Leicestershire District Council,31UH,Leisure Centres,Hermitage Leisure Centre,HLC,Security Alert UK,A037299,24/05/2017,1345869,315,Security services
North West Leicestershire District Council,31UH,Leisure Centres,Hood Park Leisure Centre,HPLC,Security Alert UK,A037299,24/05/2017,1345870,270,Security Services
North West Leicestershire District Council,31UH,Housing,HRA Housing Management,HRAHM,Wilks Head & Eve LLP,A041842,24/05/2017,1345877,6480,Legal & Professional Services
North West Leicestershire District Council,31UH,Finance,Financial Planning,FINPLA,Hinckley & Bosworth Borough Council,A000770,24/05/2017,1345880,17403,Other Government Grants
North West Leicestershire District Council,31UH,Finance,Financial Planning,FINPLA,Blueprint Limited Partnership,A032013,24/05/2017,1345881,12297.53,Contribution To Emda
North West Leicestershire District Council,31UH,Finance,Financial Planning,FINPLA,Measham Parish Council,A001082,24/05/2017,1345882,1877.49,Contr To Measham Dev Trust
North West Leicestershire District Council,31UH,Street Management,Environment Transport,ENOT,Henton & Chattell Limited,A000757,24/05/2017,1345883,313.47,Transport Costs - Engine Oil
North West Leicestershire District Council,31UH,Street Management,Environment Transport,ENOT,Complete Vehicle Accessories Ltd,A044023,24/05/2017,1345887,8650,Operational Equipment
North West Leicestershire District Council,31UH,Finance,Exchequer Services,EXCH,Comensura Limited,A036958,24/05/2017,1345889,26046.49,Agency Staff
North West Leicestershire District Council,31UH,Communications,Corporate - Customer Services,CS,Neopost Limited,A000079,24/05/2017,1345893,3000,Postages
North West Leicestershire District Council,31UH,Finance,Housing Benefits,BENS,Capita Business Services Ltd,A002968,31/05/2017,1345898,6373.48,Revs & Bens expenditure funded by grants
North West Leicestershire District Council,31UH,Housing,HRA Performance & Business Support,HRAPBS,Michael Page International Recruitment Ltd,A041893,24/05/2017,1345903,1332.8,Agency Staff
North West Leicestershire District Council,31UH,Housing,HRA Performance & Business Support,HRAPBS,Michael Page International Recruitment Ltd,A041893,24/05/2017,1345904,7722.4,Agency Staff
North West Leicestershire District Council,31UH,Housing,HRA Performance & Business Support,HRAPBS,Michael Page International Recruitment Ltd,A041893,24/05/2017,1345905,2017.75,Agency Staff
North West Leicestershire District Council,31UH,Housing,HRA Housing Management,HRAHM,Sturgis Snow & Astill LLP,A032635,24/05/2017,1345906,375,Legal & Professional Services
North West Leicestershire District Council,31UH,Leisure Centres,Hood Park Leisure Centre,HPLC,Keltic,A030776,24/05/2017,1345908,305.45,Protective Clothing
North West Leicestershire District Council,31UH,Street Management,Environment - Street Scene,ESS,Trevor Roberts Associates Ltd,A042339,24/05/2017,1345909,645,Training Course
North West Leicestershire District Council,31UH,Information Technology,ICT Services,ICT,Freedom Communications (UK) Ltd,A032826,24/05/2017,1345911,1543.32,Admin Equipment - Maintenance
North West Leicestershire District Council,31UH,Finance,Exchequer Services,EXCH,British Gas,A042590,24/05/2017,1345912,478.94,Electricity
North West Leicestershire District Council,31UH,Legal & Democratic,Electoral & Land Charges,LDELC,Twofold Ltd,A041261,24/05/2017,1345914,400,Operational Equipment
North West Leicestershire District Council,31UH,Housing,HRA Housing Management,HRAHM,Leicestershire County Council,A000950,24/05/2017,1345919,5120.52,Contract Cleaning
North West Leicestershire District Council,31UH,Street Management,Environment Transport,ENOT,Keith Cook Training Services,A027792,24/05/2017,1345921,652,Training Course
North West Leicestershire District Council,31UH,Leisure Centres,Hood Park Leisure Centre,HPLC,Lifesavers Direct,A033109,31/05/2017,1345922,424,Training Expenses
North West Leicestershire District Council,31UH,Housing Repairs,HRA Housing Repairs & Maintenance,HRAHRM,Orbis Property Protection Ltd,A028149,24/05/2017,1345926,345,Void Property Clearance Services
North West Leicestershire District Council,31UH,Housing Repairs,HRA Housing Repairs & Maintenance,HRAHRM,Orbis Property Protection Ltd,A028149,24/05/2017,1345934,1060,Void Property Clearance Services
North West Leicestershire District Council,31UH,Housing Repairs,HRA Housing Repairs & Maintenance,HRAHRM,Orbis Property Protection Ltd,A028149,24/05/2017,1345944,260,Void Property Clearance Services
North West Leicestershire District Council,31UH,Housing Repairs,HRA Housing Repairs & Maintenance,HRAHRM,Orbis Property Protection Ltd,A028149,24/05/2017,1345945,260,Void Property Clearance Services
North West Leicestershire District Council,31UH,Housing Repairs,HRA Housing Repairs & Maintenance,HRAHRM,Orbis Property Protection Ltd,A028149,24/05/2017,1345947,1645,Void Property Clearance Services
North West Leicestershire District Council,31UH,Housing Repairs,HRA Housing Repairs & Maintenance,HRAHRM,Orbis Property Protection Ltd,A028149,24/05/2017,1345948,299,Void Property Clearance Services
North West Leicestershire District Council,31UH,Housing Repairs,HRA Housing Repairs & Maintenance,HRAHRM,Orbis Property Protection Ltd,A028149,24/05/2017,1345953,280,Void Property Clearance Services
North West Leicestershire District Council,31UH,Housing Repairs,HRA Housing Repairs & Maintenance,HRAHRM,Orbis Property Protection Ltd,A028149,24/05/2017,1345954,350,Void Property Clearance Services
North West Leicestershire District Council,31UH,Housing Repairs,HRA Housing Repairs & Maintenance,HRAHRM,Orbis Property Protection Ltd,A028149,24/05/2017,1345962,260,Void Property Clearance Services
North West Leicestershire District Council,31UH,Housing Repairs,HRA Housing Repairs & Maintenance,HRAHRM,Orbis Property Protection Ltd,A028149,24/05/2017,1345964,325,Void Property Clearance Services
North West Leicestershire District Council,31UH,Housing Repairs,HRA Housing Repairs & Maintenance,HRAHRM,Orbis Property Protection Ltd,A028149,24/05/2017,1345968,270,Void Property Clearance Services
North West Leicestershire District Council,31UH,Housing Repairs,HRA Housing Repairs & Maintenance,HRAHRM,Orbis Property Protection Ltd,A028149,24/05/2017,1345969,325,Void Property Clearance Services
North West Leicestershire District Council,31UH,Leisure Centres,Hood Park Leisure Centre,HPLC,Lifesavers Direct,A033109,24/05/2017,1345973,290,Leisure centre Equipment
North West Leicestershire District Council,31UH,Leisure & Culture,Sport & Physical Activity,SPA,19eleven Limited,A044015,24/05/2017,1345982,508.1,Consultants Fees
North West Leicestershire District Council,31UH,Planning & Development,Environment - Town Centre/CCTV,ECCTV,Turning Point (Swanswell),A044028,24/05/2017,1345983,17898.42,Grants
North West Leicestershire District Council,31UH,Leisure Centres,Hood Park Leisure Centre,HPLC,Technogym Uk Limited,A001642,24/05/2017,1345985,642.26,Operational Equipment
North West Leicestershire District Council,31UH,Leisure Centres,Hermitage Leisure Centre,HLC,Technogym Uk Limited,A001642,31/05/2017,1345989,578.91,Operational Equipment
North West Leicestershire District Council,31UH,Street Management,Environment Transport,ENOT,Finning (UK) Ltd,A028216,24/05/2017,1345994,396.42,Scheduled Servicing - Parts
North West Leicestershire District Council,31UH,Street Management,Environment Transport,ENOT,Ford & Slater Group Ltd,A000625,24/05/2017,1345997,583.36,Vehicle related Costs
North West Leicestershire District Council,31UH,Street Management,Environment Transport,ENOT,Watling JCB Ltd,A032114,12/07/2017,1346001,790,Scheduled Servicing - Parts
North West Leicestershire District Council,31UH,Leisure Centres,Hood Park Leisure Centre,HPLC,J P Lennard Ltd,A000969,24/05/2017,1346009,513.47,Operational Equipment
North West Leicestershire District Council,31UH,Leisure Centres,Hood Park Bar and Catering,HPBC,LWC - Birmingham,A039915,24/05/2017,1346010,298.3,Bar Provisions
North West Leicestershire District Council,31UH,Leisure Centres,Hood Park Leisure Centre,HPLC,Combined Power Limited,A030702,24/05/2017,1346014,6441.98,Service Contracts
North West Leicestershire District Council,31UH,Leisure Centres,Hermitage Leisure Centre,HLC,Gardner Electical Group,A012096,24/05/2017,1346018,498,General Repairs
North West Leicestershire District Council,31UH,Information Technology,ICT Services,ICT,ACS Systems (UK) Ltd T/a ACS Office Solutions,A043447,24/05/2017,1346024,331,Admin Equipment - Maintenance
North West Leicestershire District Council,31UH,Environmental Health,Environmental Health & Licensing,EEHL,Killgerm Chemicals Ltd,A000890,24/05/2017,1346025,457.66,Baits & Poisons
North West Leicestershire District Council,31UH,Planning & Development,Environment Community Planning,ECP,Nottingham City Council,A041558,24/05/2017,1346026,850,Training Course
North West Leicestershire District Council,31UH,Leisure & Culture,Cultural Services Arts & Events,CULTEV,The Flagman,A044027,24/05/2017,1346027,786,Event Expenditure
North West Leicestershire District Council,31UH,Planning & Development,Environment - Development Control,EDC,Macpherson Coaches Limited,A001025,24/05/2017,1346028,395,Urban Design/Our Place
North West Leicestershire District Council,31UH,Housing,HRA Housing Management,HRAHM,Sturgis Snow & Astill LLP,A032635,31/05/2017,1346029,375,Legal & Professional Services
North West Leicestershire District Council,31UH,Housing,HRA Housing Management,HRAHM,PPG Architectural Coatings Ltd,A000876,24/05/2017,1346032,3060.41,Internal Decorations
North West Leicestershire District Council,31UH,Housing,HRA Housing Management,HRAHM,PPG Architectural Coatings Ltd,A000876,24/05/2017,1346033,2738.34,Internal Decorations
North West Leicestershire District Council,31UH,Housing,HRA Housing Management,HRAHM,A J Contracts,A034116,24/05/2017,1346034,1085,Contract Cleaning
North West Leicestershire District Council,31UH,Housing,HRA Housing Management,HRAHM,PPG Architectural Coatings Ltd,A000876,24/05/2017,1346035,2690.24,Internal Decorations
North West Leicestershire District Council,31UH,Housing,HRA Housing Management,HRAHM,PPG Architectural Coatings Ltd,A000876,24/05/2017,1346036,1894.65,Internal Decorations
North West Leicestershire District Council,31UH,Leisure Centres,Hood Park Leisure Centre,HPLC,Virgin Media Business,A035373,24/05/2017,1346038,711.49,Telephone Charge / Rental
North West Leicestershire District Council,31UH,Housing Repairs,HRA Housing Repairs & Maintenance,HRAHRM,Sure Maintenance Ltd,A040460,24/05/2017,1346053,935,Plumbing & Heating
North West Leicestershire District Council,31UH,Leisure Centres,Hermitage Bar & Catering,HLBC,Hopwells Frozen Foods Limited,A000783,24/05/2017,1346055,250.65,Catering Provisions
North West Leicestershire District Council,31UH,Leisure Centres,Hood Park Bar and Catering,HPBC,Snackline Direct Ltd,A042489,24/05/2017,1346059,1505.13,Vending Machine Provisions
North West Leicestershire District Council,31UH,Street Management,Environment General Technician,ENOGT,Cuckoo Gap Limited,A000438,24/05/2017,1346061,637.86,Routine Ground Maintenance
North West Leicestershire District Council,31UH,Street Management,Environment General Technician,ENOGT,Cuckoo Gap Limited,A000438,24/05/2017,1346066,744,Land Drainage
North West Leicestershire District Council,31UH,Street Management,Environment General Technician,ENOGT,Cuckoo Gap Limited,A000438,24/05/2017,1346067,352,Land Drainage
North West Leicestershire District Council,31UH,Street Management,Environment General Technician,ENOGT,Cuckoo Gap Limited,A000438,24/05/2017,1346068,1665.98,Routine Ground Maintenance
North West Leicestershire District Council,31UH,Street Management,Environment General Technician,ENOGT,Cuckoo Gap Limited,A000438,24/05/2017,1346069,420.9,Routine Ground Maintenance
North West Leicestershire District Council,31UH,Street Management,Environment General Technician,ENOGT,Cuckoo Gap Limited,A000438,24/05/2017,1346070,621.45,Routine Ground Maintenance
North West Leicestershire District Council,31UH,Street Management,Environment General Technician,ENOGT,Cuckoo Gap Limited,A000438,24/05/2017,1346125,1010.29,Routine Ground Maintenance
North West Leicestershire District Council,31UH,Communications,Corporate - Customer Services,CS,ESPO,A000958,24/05/2017,1346129,259,Stationery
North West Leicestershire District Council,31UH,Planning & Development,Environment - Development Control,EDC,Walking-the-Talk,A044025,24/05/2017,1346133,675,External Legal Fees & Advice
North West Leicestershire District Council,31UH,Housing Repairs,HRA Housing Repairs & Maintenance,HRAHRM,DTE Demolition,A044031,24/05/2017,1346136,10090,Demolition Work
North West Leicestershire District Council,31UH,Legal & Democratic,Legal Services,LDLS,Anthony Collins Solicitors,A027936,24/05/2017,1346137,1750,Legal & Professional Services
North West Leicestershire District Council,31UH,Housing,HRA Housing Management,HRAHM,Redacted-personal data,A043976,24/05/2017,1346141,666.98,Under Occupancy Incentives
North West Leicestershire District Council,31UH,Housing,HRA Housing Management,HRAHM,Redacted-personal data,A044032,24/05/2017,1346152,250,Under Occupancy Incentives
North West Leicestershire District Council,31UH,Housing,HRA Housing Management,HRAHM,Redacted-personal data,A044033,24/05/2017,1346153,250,Under Occupancy Incentives
North West Leicestershire District Council,31UH,Environmental Health,Environmental Health & Licensing,EEHL,Public Health England,A032001,31/05/2017,1346165,575.12,Private & Pool Water Sampling
North West Leicestershire District Council,31UH,Finance,Financial Planning,FINPLA,Leicestershire County Council,A000950,23/05/2017,1346166,2061713,Precept
North West Leicestershire District Council,31UH,Street Management,Environment Waste Management,ENOWM,Something Different (UK) Ltd,A040393,24/05/2017,1346167,1678.6,Publicity & Promotion
North West Leicestershire District Council,31UH,Finance,Financial Planning,FINPLA,"Leicester, Leicestershire & Rutland Combined Fire Service",A028339,23/05/2017,1346168,204100,Precept
North West Leicestershire District Council,31UH,Finance,Financial Planning,FINPLA,The Office of the Police and Crime Commissioner for Leicestershire,A007096,23/05/2017,1346169,608107.75,Precept
North West Leicestershire District Council,31UH,Finance,Financial Planning,FINPLA,Leicestershire County Council,A000950,23/05/2017,1346170,2061713,Precept
North West Leicestershire District Council,31UH,Finance,Financial Planning,FINPLA,Leicestershire County Council,A000950,23/05/2017,1346171,3805048,Precept
North West Leicestershire District Council,31UH,Finance,Financial Planning,FINPLA,Department for Communities & Local Government,A028518,23/05/2017,1346172,2551627,Subsidy Receipts & Repayments
North West Leicestershire District Council,31UH,Finance,Financial Planning,FINPLA,Department for Communities & Local Government,A028518,23/05/2017,1346173,2603168,Subsidy Receipts & Repayments
North West Leicestershire District Council,31UH,Legal & Democratic,Legal Services,LDLS,Venn Group Limited,A028530,24/05/2017,1346184,1045.8,Agency Staff
North West Leicestershire District Council,31UH,Housing,HRA Performance & Business Support,HRAPBS,Michael Page International Recruitment Ltd,A041893,24/05/2017,1346185,1450.4,Agency Staff
North West Leicestershire District Council,31UH,Housing,HRA Performance & Business Support,HRAPBS,Michael Page International Recruitment Ltd,A041893,24/05/2017,1346186,2017.75,Agency Staff
North West Leicestershire District Council,31UH,Housing,HRA Housing Management,HRAHM,HMCTS,A033956,23/05/2017,1346187,1300,Legal & Professional Services
North West Leicestershire District Council,31UH,Finance,Financial Planning,FINPLA,Lloyds Bank Plc,A042250,23/05/2017,1346188,1500000,Policy Lending
North West Leicestershire District Council,31UH,Finance,Exchequer Services,EXCH,British Telecommunications Plc,A000233,23/05/2017,1346189,5534.85,Alarm System Telephones
North West Leicestershire District Council,31UH,Leisure Centres,Hermitage Leisure Centre,HLC,Water Plus Limited,A044043,24/05/2017,1346190,1944.4,Water Charges (Metered)
North West Leicestershire District Council,31UH,Street Management,Environment - Street Scene,ESS,Water Plus Limited,A044043,24/05/2017,1346191,424.04,Sewerage & Environmental
North West Leicestershire District Council,31UH,Street Management,Environment - Street Scene,ESS,Water Plus Limited,A044043,24/05/2017,1346192,301.81,Sewerage & Environmental
North West Leicestershire District Council,31UH,Street Management,Environment - Street Scene,ESS,Water Plus Limited,A044043,24/05/2017,1346193,586.42,Sewerage & Environmental
North West Leicestershire District Council,31UH,Street Management,Environment - Street Scene,ESS,Water Plus Limited,A044043,24/05/2017,1346194,5674.53,Sewerage & Environmental
North West Leicestershire District Council,31UH,Finance,Financial Planning,FINPLA,The National Forest Company,A027538,24/05/2017,1346199,17754.9,National Forest Payments
North West Leicestershire District Council,31UH,Housing Repairs,HRA Housing Repairs & Maintenance,HRAHRM,KONE,A041790,24/05/2017,1346204,1493.84,Lifts & Escalators
North West Leicestershire District Council,31UH,Housing Repairs,HRA Housing Repairs & Maintenance,HRAHRM,Laker BMS Ltd,A031787,24/05/2017,1346206,4059.7,Housing repairs
North West Leicestershire District Council,31UH,Housing Repairs,HRA Housing Repairs & Maintenance,HRAHRM,Laker BMS Ltd,A031787,24/05/2017,1346207,4373.38,Housing repairs
North West Leicestershire District Council,31UH,Housing Repairs,HRA Housing Repairs & Maintenance,HRAHRM,Newton Fallowell,A036205,24/05/2017,1346213,2562.5,Legal & Professional Services
North West Leicestershire District Council,31UH,Housing Repairs,HRA Housing Repairs & Maintenance,HRAHRM,Leicestershire County Council,A000950,24/05/2017,1346219,710,Contract Payments (Dws) Ext
North West Leicestershire District Council,31UH,Housing Repairs,HRA Housing Repairs & Maintenance,HRAHRM,Hays Human Resources,A024378,24/05/2017,1346224,954,Agency Staff
North West Leicestershire District Council,31UH,Corporate Director,Human Resources,HR,Automotive Leasing,A042080,,1346226,681.26,Vehicle Leasing
North West Leicestershire District Council,31UH,Environmental Health,Environmental Health & Licensing,EEHL,College Garth Boarding Kennels,A000385,24/05/2017,1346228,1981,Stray Dog Service
North West Leicestershire District Council,31UH,Housing,HRA Housing Management,HRAHM,B & R Wright,A044047,24/05/2017,1346229,2350,Legal & Professional Services
North West Leicestershire District Council,31UH,Environmental Health,Environmental Services,EES,Water Plus Limited,A044043,24/05/2017,1346234,412.3,Water Charges (Metered)
North West Leicestershire District Council,31UH,Corporate Director,Human Resources,HR,Automotive Leasing,A042080,,1346236,3092.17,Vehicle Leasing
North West Leicestershire District Council,31UH,Street Management,Environment Transport,ENOT,Vehicle Inspecition and Training Services,A044049,24/05/2017,1346239,550,Training Course
North West Leicestershire District Council,31UH,Housing,HRA Housing Management,HRAHM,Riverview Tenants & Residents Association,A028377,31/05/2017,1346240,600,Grants
North West Leicestershire District Council,31UH,Housing,HRA Housing Management,HRAHM,Central Court TARA,A043328,31/05/2017,1346241,600,Grants
North West Leicestershire District Council,31UH,Leisure Centres,Hood Park Leisure Centre,HPLC,Dura-Sport (Leisure Care) Ltd,A041815,31/05/2017,1346242,280,General Repairs
North West Leicestershire District Council,31UH,Street Management,Environment Transport,ENOT,County Drains Leicester Ltd,A024295,31/05/2017,1346243,475,General Repairs
North West Leicestershire District Council,31UH,Street Management,Environment Transport,ENOT,Reflec Signs & Graphics Ltd,A025348,31/05/2017,1346249,260,Repairs - Parts
North West Leicestershire District Council,31UH,Finance,Revenues,REVS,Hinckley & Bosworth Borough Council,A000770,31/05/2017,1346255,554.77,Revs & Bens expenditure funded by grants
North West Leicestershire District Council,31UH,Corporate Director,Human Resources,HR,Health Management Ltd,A038840,31/05/2017,1346258,1230,Occupational Health Services
North West Leicestershire District Council,31UH,Finance,Financial Planning,FINPLA,RPT Consulting Ltd,A043782,31/05/2017,1346259,648.5,Consultants Fees
North West Leicestershire District Council,31UH,Street Management,Environment Transport,ENOT,Certas Energy Uk Ltd,A043448,31/05/2017,1346261,17639.7,Fuel
North West Leicestershire District Council,31UH,Street Management,Environment Transport,ENOT,Certas Energy Uk Ltd,A043448,31/05/2017,1346262,886.8,Fuel
North West Leicestershire District Council,31UH,Information Technology,ICT Services,ICT,Firmstep,A030931,31/05/2017,1346271,18112.5,Contract Payments (Other) Ext
North West Leicestershire District Council,31UH,Street Management,Environment Transport,ENOT,Johnston Sweepers Ltd,A039355,31/05/2017,1346272,602,Repairs - Parts
North West Leicestershire District Council,31UH,Neighbourhoods & Communities,N & C Neighbourhoods,NACN,St Helen's PCC,A032215,31/05/2017,1346274,10000,Community Initiatives
North West Leicestershire District Council,31UH,Finance,Exchequer Services,EXCH,Comensura Limited,A036958,31/05/2017,1346276,32719.52,Agency Staff
North West Leicestershire District Council,31UH,Leisure Centres,Hermitage Bar & Catering,HLBC,Catering Services (Supplies) Ltd,A000310,31/05/2017,1346285,271.84,Catering Provisions
North West Leicestershire District Council,31UH,Leisure Centres,Hermitage Leisure Centre,HLC,J P Lennard Ltd,A000969,31/05/2017,1346286,3040,Operational Equipment
North West Leicestershire District Council,31UH,Leisure Centres,Hermitage Leisure Centre,HLC,CSS Pools & Leisure,A034993,31/05/2017,1346288,470.85,Service Contracts
North West Leicestershire District Council,31UH,Leisure Centres,Hermitage Leisure Centre,HLC,Pristine Clean,A042255,31/05/2017,1346292,275,General Repairs
North West Leicestershire District Council,31UH,Leisure Centres,Hood Park Leisure Centre,HPLC,Pristine Clean,A042255,31/05/2017,1346293,300,General Repairs
North West Leicestershire District Council,31UH,Information Technology,ICT Services,ICT,Virgin Media Business,A008908,31/05/2017,1346294,404.57,Admin Equipment - Maintenance
North West Leicestershire District Council,31UH,Property Services,Property Commercial Lettings,PROPCL,Water Plus Limited,A044043,31/05/2017,1346298,1930.11,Water Charges (Metered)
North West Leicestershire District Council,31UH,Property Services,Property Commercial Lettings,PROPCL,British Telecommunications Plc,A000233,31/05/2017,1346299,586.97,Telephones
North West Leicestershire District Council,31UH,Property Services,Property Commercial Lettings,PROPCL,Water Plus Limited,A044043,31/05/2017,1346300,3168.98,Water Charges (Metered)
North West Leicestershire District Council,31UH,Information Technology,ICT Services,ICT,British Telecommunications Plc,A000233,31/05/2017,1346303,552.56,General Repairs
North West Leicestershire District Council,31UH,Street Management,Environment Transport,ENOT,Ford Motor Company Ltd,A041004,31/05/2017,1346304,23057.5,Vehicle Leasing
North West Leicestershire District Council,31UH,Street Management,Environment - Street Scene,ESS,DoorTechnik,A042985,31/05/2017,1346307,274.32,General Repairs
North West Leicestershire District Council,31UH,Environmental Health,Environmental Services,EES,City of Wolverhampton Council,A044050,31/05/2017,1346308,500,Training Course
